Cogmind - Beta 13 @@@ ROGUE MODE // 2024.04.01 @ 21:36:43 Player: SuperDrops Result: Destroyed by as-19331 with Assembled Rifle Performance ------------- Evolutions (0) 0 Regions Visited (2) 400 Robots Destroyed (7) 35 Value Destroyed (161) 161 Prototype IDs (0) 0 Alien Tech Used (0) 0 Bonus (0) 0 TOTAL SCORE: 596 Bonus ------- None Cogmind --------- Core Integrity 0/250 Matter 300/300 Energy 99/100 System Corruption 5% Temperature Cool (0) Movement Core (100) Ox1 Location -10/Mines Parts ------- > --- POWER (1) -------- (None) > --- PROPULSION (2) --- (None) > --- UTILITY (2) ------ Small Storage Unit > --- WEAPON (2) ------- (None) > --- INVENTORY (8) ---- Light Ion Engine Aluminum Leg Aluminum Leg Compact Wheel Compact Wheel Propulsion Shielding Mining Laser Peak State ------------ > --- POWER ------------ Light Nuclear Core > --- PROPULSION ------- Light Treads Light Treads > --- UTILITY ---------- Small Storage Unit Signal Interpreter > --- WEAPON ----------- Assault Rifle Light Assault Rifle > --- INVENTORY -------- Light Ion Engine Aluminum Leg Aluminum Leg Compact Wheel Compact Wheel Propulsion Shielding Small Laser Mining Laser [Rating: 9] Favorites ----------- Power Light Ion Engine Engine Light Ion Engine Power Core Light Nuclear Core Propulsion Light Treads Treads Light Treads Utility Small Storage Unit Storage Small Storage Unit Processor Signal Interpreter Weapon Light Assault Rifle Energy Gun Small Laser Ballistic Gun Light Assault Rifle Special Weapon Mining Laser Build | -11 -10 -10 ------- Run | Yrd Mat Min Slots Evolved . | . . . Power . | . . . Propulsion . | . . . Utility . | . . . Weapon . | . . . Parts Attached 11 | 6 4 1 Power 2 | 1 1 . Engine 1 | 1 . . Core 1 | . 1 . Reactor . | . . . Propulsion 2 | 2 . . Treads 2 | 2 . . Leg . | . . . Wheel . | . . . Hover . | . . . Flight . | . . . Utility 2 | 1 1 . Device . | . . . Storage 1 | 1 . . Processor 1 | . 1 . Hackware . | . . . Protection . | . . . Artifact . | . . . Weapon 5 | 2 2 1 Energy Gun 1 | . . 1 Energy Cannon . | . . . Ballistic Gun 3 | 2 1 . Ballistic Cannon . | . . . Launcher . | . . . Special Weapon 1 | . 1 . Impact Weapon . | . . . Slashing Weapon . | . . . Piercing Weapon . | . . . Special Melee Weapon . | . . . Unidentified Prototypes . | . . . Parts Lost 7 | . . 7 Power 1 | . . 1 Propulsion 2 | . . 2 Utility 1 | . . 1 Weapon 3 | . . 3 Highest Loss Streak 7 | . . 7 To Critical Strikes . | . . . Average Slot Usage (%) 88 | . 92 52 Engine 8 | . 9 . Core 4 | . 4 6 Treads 26 | . 28 12 Storage 14 | . 14 14 Processor 6 | . 7 6 Ballistic Gun 26 | . 27 10 Naked Turns . | . . . Heaviest Build 13 | 11 13 13 Greatest Support 40 | 40 40 40 Greatest Overweight (x) 1 | . . 1 Average Overweight (x) . | . . . Largest Inventory Capacity 8 | 8 8 8 Average Capacity 7 | 7 8 8 Most Carried 8 | 6 8 8 Average Carried 7 | 3 7 7 Final Capacity 8 | 8 8 8 Final Carried 8 | 6 8 7 Class Distribution -------------------- 100% | Mutant Dominant Class ---------------- Mutant | -10/Materials Mutant | -10/Mines Resources | -11 -10 -10 ----------- Run | Yrd Mat Min Matter Collected 383 | 195 150 38 Remotely . | . . . Salvage Created 228 | . 170 58 Parts 18 | . 18 . Haulers Intercepted . | . . . Recyclers Shooed 1 | . 1 . Parts Field Recycled . | . . . Retrieved Matter . | . . . Parts Self-Destructed . | . . . Prevented . | . . . Kills | -11 -10 -10 ------- Run | Yrd Mat Min Combat Hostiles Destroyed 10 | . 6 4 Guns 10 | . 6 4 Classes Destroyed 4 | . 3 1 Watcher 1 | . 1 . Swarmer 3 | . 3 . Grunt 3 | . 3 . Assembled 4 | . . 4 Best Kill Streak 4 | . 3 4 Combat Bots Only 4 | . 3 4 Max Kills in Single Turn 1 | . 1 1 Gunslinging . | . . . Exploded . | . . . Melee . | . . . Uniques/NPCs Destroyed . | . . . Combat | -11 -10 -10 -------- Run | Yrd Mat Min Hostile Shots Fired 104 | . 44 60 Missed 25 | . 14 11 Damage Taken 979 | . 306 673 Core 255 | . 27 228 Absorbed by Shields . | . . . Core Remaining (%) 100 | 100 . . Volleys Fired 53 | . 33 20 Largest 2 | . 2 2 Hottest 40 | . 40 40 Shots Fired 88 | . 66 22 Gun 88 | . 66 22 Cannon . | . . . Launcher . | . . . Special . | . . . Kinetic 76 | . 66 10 Thermal 12 | . . 12 Explosive . | . . . Electromagnetic . | . . . Robot Hit Streak 8 | . 8 5 Robot Miss Streak 3 | . 3 3 Penetration Max . | . . . Secondary Targets 2 | . 2 . Max Gunslinging Chain 1 | . 1 . Shots Hit Robots 49 | . 37 12 Core Hits 31 | . 18 13 Critical Kills . | . . . Critical Parts Destroyed . | . . . Critical Strikes . | . . . Melee Attacks . | . . . Impact . | . . . Slashing . | . . . Piercing . | . . . Sneak Attacks . | . . . Combat Hostiles . | . . . Follow-up Attacks . | . . . Damage Inflicted 591 | . 410 181 Guns 566 | . 404 162 Cannons . | . . . Explosions . | . . . Melee . | . . . Ramming 25 | . 6 19 Kinetic 465 | . 404 61 Thermal 101 | . . 101 Explosive . | . . . Electromagnetic . | . . . Impact . | . . . Slashing . | . . . Piercing . | . . . Highest Corruption 5 | . . 5 Average Corruption 4 | . . 4 Corruption Purged . | . . . Corruption Blocked . | . . . Effects 1 | . . 1 Matter Fused 1 | . . 1 Overload Shots . | . . . Overflow Damage . | . . . Projectiles . | . . . Explosions . | . . . Melee . | . . . Knockbacks . | . . . Impact . | . . . Kinetic . | . . . Secondary . | . . . Self-Inflicted Damage 7 | . . 7 Shots . | . . . Rammed 17 | . 4 13 Targets Rammed 17 | . 4 13 Kicked . | . . . Crushed . | . . . Highest Temperature 87 | . 28 87 Average Temperature 29 | . 7 54 Received Heat Transfer 360 | . 120 240 Siege Activations . | . . . Robots Corrupted . | . . . Combat Hostiles . | . . . Parts Fried . | . . . Impact Corruptions . | . . . Robots Melted . | . . . Combat Hostiles . | . . . Parts Melted . | . . . Heat Transferred 225 | . . 225 Parts Sabotaged . | . . . Parts Stolen . | . . . Parts Stripped . | . . . Power Chain Reactions . | . . . Alert | -11 -10 -10 ------- Run | Yrd Mat Min Peak Influence 181 | . 181 70 Initial 70 | . . 70 Average 63 | . 75 33 Maximum Alert Level . | . . . Low Security (%) 100 | 100 100 100 Level 1 . | . . . Level 2 . | . . . Level 3 . | . . . Level 4 . | . . . Level 5 . | . . . High Security . | . . . Max Security . | . . . Squads Dispatched 1 | . 1 . Investigation . | . . . Extermination . | . . . Reinforcement 1 | . 1 . Assault . | . . . Garrison . | . . . Intercept . | . . . Searches Triggered . | . . . Construction Impeded . | . . . Haulers Reinforced . | . . . Active Scanning Responses . | . . . Cargo Convoy Interrupts . | . . . Stealth | -11 -10 -10 --------- Run | Yrd Mat Min Distress Signals . | . . . Communications Jammed . | . . . Distress Signals . | . . . Times Spotted 17 | . 11 6 Peak Tracking Total 6 | . 4 6 Tactical Retreats 1 | . 1 . Traps | -11 -10 -10 ------- Run | Yrd Mat Min Traps Triggered . | . . . Indirectly . | . . . Trap Hack Attempts . | . . . Triggered . | . . . Disarmed . | . . . Reprogrammed . | . . . Reused . | . . . Traps Extracted . | . . . Installed . | . . . Triggered . | . . . Machines | -11 -10 -10 ---------- Run | Yrd Mat Min Machines Disabled . | . . . Max in Single Turn . | . . . Machines Repaired . | . . . Machines Dismantled . | . . . Machines Sabotaged . | . . . Overloaded Fab Kills . | . . . Hacking | -11 -10 -10 --------- Run | Yrd Mat Min Machines Accessed . | . . . Terminals . | . . . Fabricators . | . . . Repair Stations . | . . . Recycling Units . | . . . Scanalyzers . | . . . Garrison Access . | . . . Total Hacks . | . . . Successful . | . . . Failed . | . . . Catastrophic . | . . . Database Lockouts . | . . . Manual . | . . . Terminals . | . . . Fabricators . | . . . Repair Stations . | . . . Recycling Units . | . . . Scanalyzers . | . . . Garrison Access . | . . . Terminal Hacks . | . . . Fabricator Hacks . | . . . Repair Station Hacks . | . . . Recycling Unit Hacks . | . . . Scanalyzer . | . . . Garrison Access Hacks . | . . . Unauthorized Hacks . | . . . Terminals . | . . . Fabricators . | . . . Repair Stations . | . . . Recycling Units . | . . . Scanalyzers . | . . . Garrison Access . | . . . Data Cores Recovered . | . . . Used . | . . . Hacking Detections . | . . . Full Trace Events . | . . . Feedback Events . | . . . Feedback Blocked . | . . . Robot Schematics Acquired . | . . . Robots Built . | . . . Authchips . | . . . Time . | . . . Total Robot Build Rating . | . . . Part Schematics Acquired . | . . . Parts Built . | . . . Authchips . | . . . Time . | . . . Total Part Build Rating . | . . . Parts Repaired . | . . . Time . | . . . Parts Recycled . | . . . Recycled Matter . | . . . Retrieved Matter . | . . . Retrieved Components . | . . . Parts Scanalyzed . | . . . Part Schematics Acquired . | . . . Parts Damaged . | . . . Bothacking | -11 -10 -10 ------------ Run | Yrd Mat Min Used RIF Installer . | . . . Robots Hacked . | . . . Non-combat . | . . . Combat . | . . . Robot Hacks Applied . | . . . Relay Couplers Released . | . . . Fabnet Peak Effective % . | . . . Robots Rewired . | . . . Allies Hacked . | . . . Hacks Repelled . | . . . Allies | -11 -10 -10 -------- Run | Yrd Mat Min Total Allies . | . . . Largest Group . | . . . Highest-Rated Group . | . . . Highest-Rated Ally . | . . . Total Orders . | . . . Ally Attacks . | . . . Total Damage . | . . . Kills . | . . . Allies Corrupted . | . . . Allies Melted . | . . . Intel | -11 -10 -10 ------- Run | Yrd Mat Min Robot Analysis Total . | . . . Derelict Logs Recovered . | . . . Drone Launches . | . . . Drone Recoveries . | . . . Exploration | -11 -10 -10 ------------- Run | Yrd Mat Min Turns Passed 795 | 82 640 73 Spaces Moved 391 | 43 334 14 Core 8 | 3 . 5 Treads 383 | 40 334 9 Legs . | . . . Wheels . | . . . Hover . | . . . Flight . | . . . Fastest Speed 50 | 50 160 100 Average Speed 158 | 152 160 138 Slowest Speed 160 | 160 160 160 Overloaded Moves . | . . . Propulsion Burnouts . | . . . Robots Hopped . | . . . Cave-ins Triggered . | . . . Exploration Rate (%) 21 | 4 58 3 Regions Visited 2 Branch Regions 1 Pre-discovered Areas . | . . . Known Exits Taken 1 | . 1 . Unknown Exits Taken 1 | 1 . . Scrap Searched . | . . . Spaces Dug . | . . . Terrain Destroyed . | . . . Melee . | . . . Projectile . | . . . AOE . | . . . Terrain Rammed . | . . . Walls Destroyed . | . . . Machines Disabled . | . . . Actions | -11 -10 -10 --------- Run | Yrd Mat Min Total 485 | 60 377 48 Wait . | . . . Move 389 | 42 333 14 Hop . | . . . Pick Up 14 | 12 2 . Fast Attach 1 | . 1 . Attach 7 | 6 . 1 Detach . | . . . Swap 3 | . 3 . Drop 1 | . 1 . Fire 53 | . 33 20 Melee . | . . . Ram 13 | . . 13 Kick . | . . . Crush 4 | . 4 . Escape Stasis . | . . . Rewire . | . . . Trap . | . . . Miscellaneous . | . . . Route ------- -11/Scrapyard -10/Materials (discovered 2 exits: [*Mat] / *Min) -10/Mines History --------- Turn | Location | Event 13 | -11/Scrapyard | Discovered new exit (range 15) 83 | -11/Scrapyard | Entered Materials 222 | -10/Materials | Discovered new exit (range 3) 290 | -10/Materials | Discovered new exit (range 8) 312 | -10/Materials | Build established: Mutant 720 | -10/Materials | Identified exit to Mines 723 | -10/Materials | Entered Mines 724 | -10/Mines | Assembled infested the area 769 | -10/Mines | Core integrity fell below 50% 788 | -10/Mines | Core integrity fell below 20% 796 | -10/Mines | Destroyed by as-19331 with Assembled Rifle Last Messages --------------- as-04039 sneak attacks. K-01 Serf destroyed. as-59742 destroyed. Lgt. Assault Rifle destroyed. Lgt. Treads destroyed. Lgt. Nuclear Core destroyed. Lgt. Treads destroyed. Signal Interpreter destroyed. System corrupted by crushing effect (+4). as-01230 destroyed. System corrupted: Matter fused (-5). as-04039 destroyed. as-19894 destroyed. Sml. Laser destroyed. Acquired 20 matter. Slammed into as-19331. Acquired 18 matter. Slammed into as-19331. Destabilizing: System corrupted (+1). Slammed into as-19331. Map ----- +----------------------------------------------------+ | ??????????????????????????????? | | ??????????????????????????????? | | ??????????????????????????????? | | ??????????????????????????????? | | ??????????????????????????????? | | ??????????????????????????????? | | ??????????????????????????????? | | ??????????????????????????????? | | ??????????????????????????????? | | ??????????????????????????????? | | ??????????????????????????????? | | ??????????????????????????????? | | ??????????????????????????????? | | ??????????????????????????????? | | ??????????????????????????????? | | ??????????????????????????????? | | ??????????????????????????????? | | ??????????????????????????????? | | ??????????????????????????????? | | ??????????????????????????????? | | ??????????????????????????????? | | ??????????????????????????????? | | ??????????????????????????????? | | ????#######???????????????????? | | ????#%% #???????????????????? | | ????#a@% %#???????????????????? | | ????# #####???????????????? | | ????# """% #???????????????? | | ????# """ ### #???????????????? | | ????# """ #?? ??????????????? | | ????# =%*#??? ?????????????? | | ????#######??? ????????????? | | ??????????????? ??????????? | | ??????????????? #####?????????? | | ????????????????#?????????????? | | ??????????????????????????????? | | ??????????????????????????????? | | ??????????????????????????????? | | | | | | | | | | | | | | | | | | | | | | | | | +----------------------------------------------------+ Best States ------------- Heat Dissipation 25 Energy Generation 14 Energy Capacity 160 Matter Stores 296 Matter Capacity 300 Sight Range 16 Terrain Scan Density 10 Evasion (%) 40 Recoil Reduction 2 Item Schematics ----------------- None Robot Schematics ------------------ None Fabricated ------------ Nothing Alien Tech Used ----------------- None Achievements -------------- None Challenges ------------ None Game ------ Seed DisruptionAssemblyNanosword Manual? 0 Play Time 00:07:29 Cumulative 7.0 hours Start 2024.04.01 @ 21:30:15 End 2024.04.01 @ 21:36:43 Sessions 1 Manual Loads 0 Difficulty Rogue Special Mode None Game No. 24 Rogue 24 Adventurer 0 Explorer 0 Win Type - Total 0 Types 0/0/0/0/0/0/0/0/0 Lore% 13 Gallery% 8 Achievement% 8 Wizard Run 0 Options --------- Layout 1 ASCII 0 Keyboard 0 Movement Mouse Keybinds 0 Fullscreen 2 Font 24/Proggy Map View 50x35 Zoom Use 0% Tactical HUD 0 Map Filters NONE Filters NONE Steam 1 RUN: 4839b670-e3c5-4981-9093-643026eb9cef